bitfinex/quotes_SOLUSD_20250429
["timestamp","ask_amount","ask_price","bid_price","bid_amount"]
[1745888781188,17.85959929,148.58,148.54,23.91843781]
[1745888781676,84.37249929,148.59,148.54,23.91843781]
[1745888782201,17.85959929,148.58,148.54,23.91843781]
[1745888782403,84.37249929,148.59,148.54,23.91843781]
[1745888783899,66.5129,148.59,148.54,23.91843781]
[1745888784205,84.37249929,148.59,148.55,23.91797688]
[1745888785894,90.42947053,148.59,148.54,23.91842252]
[1745888786204,84.37249929,148.59,148.55,17.85959929]
[1745888787800,66.5129,148.59,148.55,23.91815801]
[1745888788208,84.37249929,148.59,148.55,23.91815801]
[1745888789293,0.03,148.59,148.58,17.85959929]
[1745888789494,0.03,148.59,148.58,18.00176086]
[1745888789697,0.03,148.59,148.58,24.0591037]
[1745888793138,0.03,148.59,148.58,17.85959929]
[1745888793929,0.03,148.59,148.58,23.91694213]
[1745888794151,0.03,148.59,148.58,24.0591037]
[1745888799944,0.03,148.65,148.59,18.79181043]
[1745888800133,0.03,148.65,148.64,17.85959929]
[1745888803143,0.03,148.65,148.64,24.05665859]
[1745888809648,0.03,148.65,148.64,17.34880168]
[1745888816454,11.18174238,148.65,148.6,80.9]
[1745888816642,11.15174238,148.64,148.6,11.15174238]
[1745888817056,0.03,148.65,148.58,30.98897517]
[1745888817057,11.15174238,148.63,148.58,30.98897517]
[1745888817233,12.80604238,148.64,148.59,11.15174238]
[1745888817435,1.6543,148.64,148.6,11.15174238]
[1745888817640,1.6543,148.64,148.62,11.15174238]
[1745888817951,0.03,148.65,148.62,11.15174238]
[1745888818351,0.03,148.65,148.61,11.15174238]
[1745888819857,11.18174238,148.65,148.61,11.15174238]
[1745888820252,11.15174238,148.63,148.58,13.78]
[1745888820456,11.15174238,148.63,148.56,1.34558803]
[1745888820457,11.15174238,148.6,148.56,17.20990069]
[1745888821361,11.15174238,148.61,148.57,11.15174238]
[1745888822164,11.15174238,148.61,148.56,17.20990069]
[1745888823160,11.15174238,148.58,148.54,25.01174238]
[1745888823541,11.15174238,148.59,148.55,11.15174238]
[1745888824354,11.15174238,148.59,148.53,6.20154351]
[1745888824557,1.6312,148.59,148.52,11.15174238]
[1745888824761,11.15174238,148.57,148.53,11.15174238]
[1745888825647,17.8760543,148.57,148.53,17.8760543]
[1745888826379,17.8760543,148.55,148.51,0.063]
[1745888826542,17.8760543,148.54,148.51,0.063]
[1745888827366,17.8760543,148.53,148.51,0.063]
[1745888827574,19.4183543,148.53,148.51,0.063]
[1745888827880,17.8760543,148.52,148.51,0.063]
[1745888828050,84.2483543,148.53,148.51,0.063]
[1745888829348,17.8760543,148.52,148.51,0.063]
[1745888833183,62.47919308,148.52,148.48,0.063]
[1745888833360,17.8760543,148.49,148.48,0.063]
[1745888835292,6.06053026,148.51,148.48,0.063]
[1745888835468,17.8760543,148.49,148.48,0.063]
[1745888836896,23.9370685,148.49,148.48,0.063]
[1745888837394,17.8760543,148.49,148.48,0.063]
[1745888837573,32.06033679,148.51,148.48,0.063]
[1745888837888,17.8760543,148.49,148.48,0.063]
[1745888841293,17.8760543,148.5,148.48,0.063]
[1745888841789,17.8760543,148.49,148.48,0.063]
[1745888842491,19.93990408,148.52,148.48,0.063]
[1745888842692,17.8760543,148.5,148.48,0.063]
[1745888842987,17.8760543,148.49,148.48,0.063]
[1745888845270,23.9370685,148.49,148.48,0.063]
[1745888845797,42.58671736,148.49,148.48,0.063]
[1745888845966,44.64964886,148.46,148.45,0.063]
[1745888846173,76.40570316,148.46,148.45,0.063]
[1745888847472,82.46794214,148.46,148.45,0.063]
[1745888849911,45.94223898,148.46,148.45,0.063]
[1745888850113,63.81829328,148.46,148.45,0.063]
[1745888851807,97.76570117,148.46,148.42,0.063]
[1745888852103,36.52570316,148.43,148.42,0.063]
[1745888852309,18.64964886,148.45,148.42,0.063]
[1745888852488,17.8760543,148.43,148.42,0.063]
[1745888854183,13.88,148.46,148.42,0.063]
[1745888854387,17.8760543,148.44,148.42,0.063]
[1745888854587,17.8760543,148.43,148.42,0.063]
[1745888856607,23.93951855,148.43,148.42,0.063]
[1745888859004,42.58916741,148.43,148.42,0.063]
[1745888859699,15.4899,148.49,148.42,17.9390543]
[1745888859884,17.8760543,148.48,148.44,17.8760543]
[1745888860286,13.84,148.49,148.46,17.8760543]
[1745888860483,13.84,148.49,148.47,17.8760543]
[1745888860686,13.84,148.49,148.46,17.8760543]
[1745888862106,13.84,148.49,148.47,17.8760543]
[1745888862609,43.8760543,148.51,148.47,17.8760543]
[1745888862978,17.8760543,148.5,148.46,17.8760543]
[1745888864709,82.9,148.49,148.46,17.8760543]
[1745888865801,82.9,148.49,148.45,23.93843956]
[1745888866014,82.9,148.49,148.46,17.8760543]
[1745888866207,82.9,148.49,148.45,6.06238526]
[1745888866388,100.7760543,148.49,148.45,17.8760543]
[1745888866587,82.9,148.49,148.45,17.8760543]
[1745888867315,82.9,148.49,148.46,17.8760543]
[1745888870013,82.9,148.49,148.46,23.93803433]
[1745888870784,17.8760543,148.48,148.43,6.06346425]
[1745888870985,17.8760543,148.48,148.43,23.93951855]
[1745888872117,17.8760543,148.48,148.44,17.8760543]
[1745888872297,17.8760543,148.48,148.42,6.12675513]
[1745888872485,17.8760543,148.48,148.43,17.8760543]
[1745888873202,17.8760543,148.48,148.44,17.8760543]
[1745888873417,82.9,148.49,148.46,17.8760543]
[1745888874410,82.9,148.52,148.48,17.8760543]
[1745888874600,100.7760543,148.51,148.47,17.8760543]
[1745888875191,82.9,148.51,148.47,17.8760543]
[1745888876618,82.9,148.51,148.47,23.93761044]
[1745888876822,82.9,148.51,148.47,6.06155614]
[1745888877000,82.9,148.51,148.47,23.93761044]
[1745888878296,82.9,148.51,148.48,17.8760543]
[1745888879198,82.9,148.51,148.48,23.9374164]
[1745888880100,82.9,148.51,148.48,6.0613621]
[1745888880325,82.9,148.51,148.48,23.9374164]
[1745888880513,107.16368852,148.54,148.48,6.0613621]
[1745888880828,107.16368852,148.54,148.51,17.8760543]
[1745888881129,93.32368852,148.54,148.51,17.8760543]
[1745888881300,10.42368852,148.54,148.52,17.8760543]
[1745888881899,10.42368852,148.54,148.51,17.8760543]
[1745888882617,10.42368852,148.54,148.5,17.8760543]
[1745888882825,10.42368852,148.54,148.48,15.2957176]
[1745888882826,10.42368852,148.54,148.52,17.8760543]
[1745888883697,10.42368852,148.54,148.49,21.35571129]
[1745888883698,10.42368852,148.54,148.53,17.8760543]
[1745888883899,10.42368852,148.54,148.53,18.01821587]
[1745888884125,0.03,148.55,148.53,18.01821587]
[1745888884313,0.03,148.55,148.54,17.8760543]
[1745888884711,0.03,148.55,148.54,23.93502831]
[1745888887997,0.03,148.55,148.54,61.94908801]
[1745888888217,0.03,148.57,148.55,18.79181043]
[1745888888418,0.03,148.57,148.56,45.36394751]
[1745888889025,0.03,148.57,148.56,70.07175468]
[1745888889238,0.03,148.57,148.56,24.07637418]
[1745888889408,0.03,148.57,148.55,17.8760543]
[1745888889606,0.03,148.57,148.52,1.34601003]
[1745888889607,17.8760543,148.56,148.52,1.34601003]
[1745888889803,17.8760543,148.53,148.48,12.61099046]
[1745888890026,18.67964886,148.57,148.48,12.61099046]
[1745888890325,18.67964886,148.57,148.45,30.70832162]
[1745888890326,17.8760543,148.52,148.47,17.8760543]
[1745888890704,1.5759,148.54,148.49,17.8760543]
[1745888890909,17.8760543,148.52,148.48,17.8760543]
[1745888891121,17.8760543,148.52,148.47,17.8760543]
[1745888891705,17.8760543,148.51,148.46,6.06210859]
[1745888891901,17.8760543,148.51,148.47,17.8760543]
[1745888892325,17.8760543,148.51,148.47,23.93777398]
[1745888892627,17.8760543,148.52,148.48,17.8760543]
[1745888892833,17.8760543,148.55,148.51,17.8760543]
[1745888893009,17.8760543,148.55,148.5,17.8760543]
[1745888893433,82.9,148.56,148.53,17.8760543]
[1745888894136,82.9,148.56,148.53,23.93529012]
[1745888895116,0.03,148.57,148.54,17.8760543]
[1745888895833,17.9060543,148.57,148.53,6.05923582]
[1745888896144,0.03,148.57,148.54,17.8760543]
[1745888896315,0.03,148.57,148.55,17.8760543]
[1745888896517,0.03,148.57,148.54,17.8760543]
[1745888898511,0.03,148.57,148.54,23.93473088]
[1745888898816,0.03,148.57,148.54,6.05867658]
[1745888899727,0.03,148.57,148.55,17.8760543]
[1745888900641,0.03,148.57,148.54,6.05867658]
[1745888900935,0.03,148.57,148.54,23.93473088]
[1745888904259,0.03,148.57,148.56,50.03881587]
[1745888904447,82.93,148.65,148.61,17.8760543]
[1745888904742,82.93,148.65,148.62,17.8760543]
[1745888905552,17.9060543,148.65,148.59,1.48771557]
[1745888905736,17.9060543,148.65,148.61,17.8760543]
[1745888906058,0.03,148.65,148.62,18.01821587]
[1745888906224,0.03,148.65,148.62,24.07392842]
[1745888906429,0.03,148.65,148.62,23.93176685]
[1745888908052,17.9060543,148.65,148.6,17.8760543]
[1745888908237,17.9060543,148.65,148.61,23.93217434]
[1745888908437,17.9060543,148.65,148.61,17.8760543]
[1745888908640,100.8060543,148.65,148.61,17.8760543]
[1745888909033,100.8060543,148.65,148.59,6.05680166]
[1745888909034,17.8760543,148.64,148.59,6.05680166]
[1745888909236,17.8760543,148.61,148.57,17.8760543]
[1745888909436,17.8760543,148.59,148.55,13.92]
[1745888909650,17.8760543,148.59,148.55,17.8760543]
[1745888909862,84.496,148.62,148.54,6.05897401]
[1745888909863,17.8760543,148.58,148.54,6.05897401]
[1745888910055,17.8760543,148.58,148.54,23.93502831]
[1745888910361,82.9,148.61,148.55,17.8760543]
[1745888910362,17.8760543,148.59,148.55,17.8760543]
[1745888911428,17.8760543,148.59,148.54,23.93502831]
[1745888912759,17.8760543,148.58,148.54,23.93502831]
[1745888913665,6.05663293,148.6,148.54,23.93502831]
[1745888913844,17.8760543,148.58,148.54,23.93502831]
[1745888915760,82.9,148.61,148.55,18.01821587]
[1745888916136,17.8760543,148.6,148.55,18.01821587]
[1745888916553,17.8760543,148.6,148.56,17.8760543]
[1745888917165,17.8760543,148.59,148.56,6.05815831]
[1745888918361,17.8760543,148.57,148.52,26.0]
[1745888918672,17.8760543,148.57,148.51,14.14]
[1745888918673,17.8760543,148.54,148.51,6.06019796]
[1745888918975,82.9,148.59,148.51,6.06019796]
[1745888919135,17.8760543,148.56,148.51,23.93625226]
[1745888920042,17.8760543,148.56,148.52,23.93568617]
[1745888920448,17.8760543,148.55,148.52,6.05963187]
[1745888921058,88.95759522,148.58,148.5,0.14216157]
[1745888921059,17.8760543,148.54,148.5,6.20263121]
[1745888921236,17.8760543,148.54,148.5,0.14216157]
[1745888921437,17.8760543,148.54,148.5,6.20269039]
[1745888921864,17.8760543,148.54,148.5,0.14216157]
[1745888922172,17.8760543,148.54,148.49,23.93693559]
[1745888922173,17.8760543,148.53,148.49,17.8760543]
[1745888922335,17.8760543,148.52,148.48,32.0790543]
[1745888922536,17.8760543,148.52,148.48,17.9390543]
[1745888923245,17.8760543,148.53,148.48,17.9390543]
[1745888923467,17.8760543,148.52,148.48,0.063]
[1745888923646,17.8760543,148.5,148.48,0.063]
[1745888924058,82.9,148.53,148.48,0.063]
[1745888924059,17.8760543,148.51,148.48,0.063]
[1745888924246,17.8760543,148.52,148.48,17.9390543]
[1745888924447,82.9,148.53,148.49,17.8760543]
[1745888924755,82.9,148.53,148.5,17.8760543]
[1745888926352,82.9,148.53,148.5,23.93649242]
[1745888926554,82.9,148.56,148.52,17.8760543]
[1745888926969,82.9,148.56,148.53,17.8760543]
[1745888927275,82.9,148.56,148.51,0.14216157]
[1745888927455,82.9,148.56,148.52,17.8760543]
[1745888927863,82.9,148.56,148.52,23.93574855]
[1745888928563,82.9,148.56,148.53,17.8760543]
[1745888929347,82.9,148.58,148.53,23.93543373]
[1745888929550,82.9,148.58,148.55,17.8760543]
[1745888929849,106.8326208,148.6,148.56,17.8760543]
[1745888930045,100.7760543,148.6,148.56,17.8760543]
[1745888930250,82.9,148.6,148.57,17.8760543]
[1745888930974,82.9,148.6,148.56,17.8760543]
[1745888931175,82.9,148.6,148.57,17.8760543]
[1745888931356,82.9,148.6,148.58,17.8760543]
[1745888931560,82.9,148.62,148.58,17.8760543]
[1745888931760,82.9,148.62,148.59,17.8760543]
[1745888932147,82.9,148.62,148.58,23.93331344]
[1745888935258,82.9,148.62,148.59,17.8760543]
[1745888935764,100.7760543,148.62,148.55,21.20453592]
[1745888935974,100.7760543,148.62,148.58,17.8760543]
[1745888936473,82.9,148.62,148.59,17.8760543]
[1745888937169,82.9,148.62,148.6,17.8760543]
[1745888937390,82.9,148.62,148.61,17.8760543]
[1745888937562,0.03,148.63,148.6,17.8760543]
[1745888937868,0.03,148.63,148.62,17.8760543]
[1745888939281,0.03,148.63,148.62,23.93176685]
[1745888940378,0.03,148.63,148.62,24.07392842]
[1745888941902,0.03,148.63,148.61,23.93217042]
[1745888942990,0.03,148.63,148.62,17.8760543]
[1745888943196,0.03,148.63,148.62,18.01821587]
[1745888944665,0.03,148.63,148.62,24.07392842]
[1745888945672,0.03,148.63,148.62,25.41923202]
[1745888946192,0.03,148.63,148.62,24.07392842]
[1745888946494,0.03,148.63,148.62,6.05571255]
[1745888946675,0.03,148.63,148.62,24.07392842]
[1745888947993,0.03,148.63,148.62,6.19787412]
[1745888948185,0.03,148.63,148.62,25.41933372]
[1745888949402,0.03,148.63,148.62,24.07392842]
[1745888950182,0.03,148.63,148.62,44.06900942]
[1745888950387,0.03,148.65,148.64,17.8760543]
[1745888950699,0.03,148.65,148.64,19.22119608]
[1745888951099,0.03,148.65,148.64,25.27609381]
[1745888951406,0.03,148.65,148.64,6.1970593]
[1745888951580,0.03,148.65,148.64,6.05489773]
[1745888952400,0.03,148.65,148.59,15.14140798]
[1745888952704,0.03,148.65,148.61,17.8760543]
[1745888953075,0.03,148.65,148.62,6.05571255]
[1745888953292,0.03,148.65,148.62,23.93176685]
[1745888954102,17.9060543,148.65,148.6,6.19830907]
[1745888954399,17.8760543,148.64,148.6,6.0561475]
[1745888954586,0.03,148.65,148.61,17.8760543]
[1745888954795,0.03,148.65,148.63,17.8760543]
[1745888955183,0.03,148.65,148.63,23.93104009]
[1745888956477,17.8760543,148.64,148.61,6.05612004]
[1745888956703,17.8760543,148.62,148.58,6.05734284]
[1745888956877,17.8760543,148.61,148.56,24.07597984]
[1745888957078,17.8760543,148.59,148.56,6.05776397]
[1745888958096,17.8760543,148.59,148.55,0.14216157]
[1745888958283,17.8760543,148.59,148.55,18.01821587]
[1745888958479,17.8760543,148.59,148.54,6.05897401]
[1745888958681,17.8760543,148.57,148.54,6.05897401]
[1745888959205,114.8560543,148.61,148.54,23.93502831]
[1745888959206,17.8760543,148.59,148.54,23.93502831]
[1745888960106,17.8760543,148.58,148.54,23.93502831]
[1745888960905,17.8760543,148.59,148.54,23.93502831]
[1745888962006,17.8760543,148.58,148.54,23.93502831]
[1745888962887,17.8760543,148.58,148.54,0.14216157]
[1745888964299,17.8760543,148.58,148.54,18.01821587]
[1745888965016,17.8760543,148.56,148.52,17.8760543]
[1745888965188,82.9,148.57,148.51,0.063]
[1745888965394,17.8760543,148.52,148.51,0.063]
[1745888965796,17.8760543,148.53,148.51,0.063]
[1745888966420,17.8760543,148.52,148.51,0.063]
[1745888967611,88.95879427,148.55,148.51,0.063]
[1745888967913,17.8760543,148.52,148.51,0.063]
[1745888969300,88.95908833,148.54,148.51,0.063]
[1745888969484,17.8760543,148.52,148.51,0.063]
[1745888970499,19.4459543,148.52,148.51,0.063]
[1745888973099,1.5699,148.52,148.51,0.063]
[1745888973411,19.4459543,148.52,148.51,0.063]
[1745888976318,17.8760543,148.52,148.51,0.063]
[1745888976820,100.7760543,148.53,148.51,0.063]
[1745888977032,82.9,148.53,148.51,0.063]
[1745888977696,100.7760543,148.53,148.51,0.063]
[1745888977898,17.8760543,148.52,148.51,0.063]
[1745888978107,100.7760543,148.53,148.51,0.063]
[1745888979597,82.9,148.53,148.51,0.063]
[1745888980513,100.7760543,148.53,148.51,0.063]
[1745888980833,82.9,148.53,148.51,0.063]
[1745888981397,100.7760543,148.53,148.51,0.063]
[1745888981599,17.8760543,148.52,148.51,0.063]
[1745888982626,82.9,148.53,148.51,17.9390543]
[1745888982813,82.9,148.53,148.51,0.063]
[1745888984399,82.9,148.53,148.51,6.12319796]
[1745888984821,82.9,148.53,148.52,17.8760543]
[1745888985024,19.4581543,148.56,148.52,17.8760543]
[1745888985525,17.8760543,148.56,148.52,17.8760543]
[1745888985696,17.8760543,148.56,148.51,23.99925226]
[1745888986005,17.8760543,148.56,148.52,17.8760543]
[1745888986194,14.04,148.57,148.53,17.8760543]
[1745888986400,14.04,148.57,148.54,6.05897401]
[1745888986800,31.9160543,148.57,148.54,6.05897401]
[1745888987421,14.04,148.57,148.54,6.05897401]
[1745888987618,14.04,148.57,148.54,23.93502831]
[1745888988722,82.9,148.58,148.54,23.93502831]
[1745888989498,236.08,148.61,148.54,23.93502831]
[1745888989499,292.98,148.61,148.56,17.8760543]
[1745888989702,82.9,148.6,148.56,17.8760543]
[1745888990122,82.9,148.6,148.57,17.8760543]
[1745888990506,82.9,148.6,148.58,17.8760543]
[1745888991211,82.9,148.6,148.57,17.8760543]
[1745888991403,82.9,148.6,148.58,17.8760543]
[1745888991604,14.04,148.62,148.56,21.2035541]
[1745888991605,14.04,148.62,148.59,17.8760543]
[1745888991814,82.9,148.63,148.6,17.8760543]
[1745888992929,82.9,148.63,148.59,17.8760543]
[1745888994716,114.8460543,148.65,148.61,17.8760543]
[1745888995029,100.8060543,148.65,148.61,17.8760543]
[1745888995227,100.8060543,148.65,148.59,0.14216157]
[1745888995228,82.93,148.65,148.62,23.93176685]
[1745888997732,0.03,148.65,148.64,17.8760543]
[1745888998737,0.03,148.65,148.63,0.14216157]
[1745888999135,0.03,148.65,148.63,18.01821587]
[1745888999842,0.03,148.65,148.61,1.34552128]
[1745889000139,0.03,148.65,148.63,17.8760543]
[1745889000714,0.03,148.65,148.64,17.8760543]
[1745889001919,0.03,148.65,148.64,23.93095203]
[1745889005543,0.03,148.65,148.64,17.21030636]
[1745889008625,0.03,148.65,148.64,6.05489773]
[1745889008819,0.03,148.65,148.64,17.35246793]
[1745889010225,0.03,148.69,148.68,26.14216157]
[1745889010527,0.03,148.71,148.69,0.14216157]
[1745889010741,0.03,148.71,148.69,11.2975702]
[1745889011925,0.03,148.71,148.68,37.15540863]
[1745889012127,0.03,148.71,148.68,43.20852307]
[1745889012328,11.15540863,148.69,148.63,21.19260922]
[1745889012532,11.15540863,148.68,148.64,37.15540863]
[1745889012751,11.15540863,148.69,148.64,37.15540863]
[1745889013849,11.15540863,148.68,148.64,37.15540863]
[1745889014151,11.15540863,148.67,148.63,17.21071375]
[1745889014653,11.15540863,148.68,148.63,17.21071375]
[1745889014862,94.05540863,148.69,148.64,11.15540863]
[1745889015147,0.03,148.7,148.67,11.15540863]
[1745889015336,0.03,148.7,148.65,1.34523519]
[1745889015539,11.18540863,148.7,148.66,11.15540863]
[1745889015927,11.15540863,148.68,148.64,11.15540863]
[1745889016348,94.08540863,148.7,148.65,11.15540863]
[1745889016871,11.15540863,148.69,148.65,11.15540863]
[1745889018449,11.15540863,148.69,148.64,17.21009893]
[1745889019756,11.15540863,148.67,148.6,21.22026153]
[1745889019936,11.15540863,148.66,148.61,11.2975702]
[1745889020354,11.15540863,148.65,148.61,11.2975702]
[1745889020756,11.15540863,148.66,148.61,11.2975702]
[1745889020928,11.15540863,148.66,148.61,17.35369024]
[1745889021135,11.15540863,148.64,148.59,14.04]
[1745889021341,11.15540863,148.63,148.59,11.15540863]
[1745889021552,11.15540863,148.63,148.59,17.21197555]
[1745889022159,11.15540863,148.64,148.59,17.21197555]
[1745889022547,11.15540863,148.64,148.6,11.15540863]
[1745889022858,11.15540863,148.65,148.6,11.15540863]
[1745889023154,11.15540863,148.65,148.6,17.21158766]
[1745889023453,84.5297,148.66,148.62,11.15540863]
[1745889023657,17.85311083,148.68,148.64,17.85311083]
[1745889024353,17.85311083,148.67,148.63,17.85311083]
[1745889025155,17.85311083,148.67,148.63,23.90812959]
[1745889025355,17.85311083,148.66,148.62,17.85311083]
[1745889025566,82.9,148.69,148.63,17.85311083]
[1745889025756,17.85311083,148.68,148.64,17.85311083]
[1745889026653,17.85311083,148.68,148.64,23.90775283]
[1745889029864,82.9,148.69,148.64,23.90775283]
[1745889030058,17.85311083,148.68,148.64,23.90775283]
[1745889030256,17.85311083,148.68,148.63,24.05044296]
[1745889030463,17.85311083,148.67,148.63,6.19733213]
[1745889030763,17.85311083,148.67,148.63,24.05044296]
[1745889031061,88.95286484,148.69,148.63,23.90828139]
[1745889031266,17.85311083,148.67,148.63,23.90828139]
[1745889032470,17.85311083,148.67,148.63,6.05517056]
[1745889032763,88.95286484,148.69,148.63,23.90828139]
[1745889032953,17.85311083,148.68,148.63,23.90828139]
[1745889033151,17.85311083,148.67,148.63,23.90828139]
[1745889033662,88.95286484,148.69,148.64,17.85311083]
[1745889033843,17.85311083,148.68,148.64,17.85311083]
[1745889034758,17.85311083,148.68,148.64,23.90798588]
[1745889034948,100.75311083,148.68,148.64,23.90798588]
[1745889035150,100.75311083,148.68,148.64,17.85311083]
[1745889035342,17.85311083,148.67,148.63,23.90826273]
[1745889035739,82.9,148.68,148.63,23.90826273]
[1745889035943,100.75311083,148.68,148.64,17.85311083]
[1745889036165,82.9,148.68,148.65,17.85311083]
[1745889036470,82.9,148.68,148.64,17.85311083]
[1745889036639,82.9,148.68,148.65,17.85311083]
[1745889037665,82.9,148.68,148.65,23.90758584]
[1745889038453,82.9,148.68,148.66,17.85311083]
[1745889038654,102.29951083,148.7,148.66,17.85311083]
[1745889038852,0.03,148.7,148.69,17.85311083]
[1745889040346,0.03,148.7,148.69,23.90597248]
[1745889044047,0.03,148.7,148.69,24.04813405]
[1745889045468,0.03,148.7,148.69,6.19502322]
[1745889045770,0.03,148.7,148.69,17.34012729]
[1745889046653,0.03,148.7,148.69,17.19796572]
[1745889047252,0.03,148.7,148.69,44.68511401]
[1745889049878,94.04510407,148.74,148.7,11.14510407]
[1745889050873,94.04510407,148.74,148.69,17.19796572]
[1745889053154,11.14510407,148.73,148.69,17.19796572]
[1745889054076,11.14510407,148.73,148.69,6.05286165]
[1745889054270,11.14510407,148.73,148.69,17.19796572]
[1745889054451,11.14510407,148.72,148.68,43.19823619]
[1745889054656,11.14510407,148.72,148.68,26.0]
[1745889055059,11.14510407,148.72,148.67,17.19864392]
[1745889055555,14.0,148.73,148.67,6.05353985]
[1745889055755,25.14510407,148.73,148.68,11.14510407]
[1745889055955,25.14510407,148.73,148.69,11.14510407]
[1745889056175,14.0,148.73,148.69,11.14510407]
[1745889056551,14.0,148.73,148.7,17.19755867]
[1745889057175,14.0,148.73,148.71,11.14510407]
[1745889058062,14.0,148.73,148.72,11.14510407]
[1745889058277,0.03,148.75,148.72,17.19674473]
[1745889058677,0.03,148.75,148.72,6.05164066]
[1745889058879,0.03,148.75,148.72,17.19674473]
[1745889059657,0.03,148.75,148.73,11.14510407]
[1745889060080,0.03,148.75,148.74,11.14510407]
[1745889060264,0.03,148.75,148.74,17.33809258]
[1745889060663,0.03,148.75,148.74,6.05082694]
[1745889060876,0.03,148.75,148.74,17.19593101]
[1745889061287,0.03,148.75,148.74,17.33809258]
[1745889062565,0.03,148.75,148.74,6.05082694]
[1745889062969,0.03,148.75,148.74,17.19593101]
[1745889063895,0.03,148.75,148.74,17.33809258]
[1745889065684,0.03,148.75,148.74,17.19593101]
[1745889068201,1e-08,148.75,148.74,29.82763196]
[1745889068498,1e-08,148.75,148.74,18.68252789]
[1745889070991,1e-08,148.75,148.74,29.82763196]
[1745889071494,1e-08,148.75,148.74,18.68252789]
[1745889072070,1e-08,148.75,148.74,37.33217675]
[1745889072272,1e-08,148.75,148.74,48.47728082]
[1745889072472,1e-08,148.75,148.74,18.68252789]
[1745889073072,1e-08,148.75,148.74,43.33809258]
[1745889073279,1e-08,148.75,148.74,32.05082694]
[1745889073486,1e-08,148.75,148.74,43.19593101]
[1745889073673,1e-08,148.75,148.74,74.47733477]
[1745889074289,1e-08,148.75,148.74,63.3322307]
[1745889075197,1e-08,148.76,148.75,44.79181043]
[1745889075381,1e-08,148.76,148.75,67.08201857]
[1745889075584,0.03,148.78,148.77,44.79181043]
[1745889075894,1e-08,148.79,148.78,0.14216157]
[1745889076078,1e-08,148.79,148.78,11.28726564]
[1745889076406,0.03,148.84,148.81,0.14216157]
[1745889076601,0.09,148.9,148.86,26.0]
[1745889076803,0.09,148.9,148.89,48.29020814]
[1745889076980,0.09,148.9,148.89,48.43236971]
[1745889077305,82.9,148.96,148.89,48.43236971]
[1745889077306,82.9,148.96,148.91,26.0]
[1745889077480,82.9,148.96,148.94,17.77693396]
[1745889077673,1.5184,148.97,148.94,17.77693396]
[1745889078186,17.77693396,148.95,148.9,6.04432505]
[1745889078386,17.77693396,148.94,148.9,17.77693396]
[1745889078696,17.77693396,148.94,148.89,6.04463686]
[1745889078906,1.5184,148.97,148.9,17.77693396]
[1745889079072,1.5184,148.97,148.89,6.04463686]
[1745889079073,17.77693396,148.93,148.88,6.18725996]
[1745889079395,23.81886782,148.96,148.89,17.77693396]
[1745889079597,6.04193386,148.96,148.9,17.77693396]
[1745889079799,17.77693396,148.91,148.86,13.82]
[1745889080009,17.77693396,148.9,148.86,13.82]
[1745889080311,18.64964886,148.95,148.86,37.6428756]
[1745889080486,17.77693396,148.87,148.78,102.12205088]
[1745889080677,17.77693396,148.83,148.79,19.8487936]
[1745889080884,17.77693396,148.84,148.8,0.14216157]
[1745889081102,17.77693396,148.82,148.79,13.8]
[1745889081400,17.77693396,148.81,148.77,23.82646276]
[1745889081597,17.77693396,148.82,148.77,23.82646276]
[1745889081782,17.77693396,148.81,148.77,6.0495288]
[1745889081990,17.77693396,148.82,148.78,17.77693396]
[1745889082310,17.77693396,148.82,148.77,23.82646276]
[1745889084105,17.77693396,148.81,148.77,23.82646276]
[1745889084477,17.77693396,148.82,148.78,17.77693396]
[1745889085303,17.77693396,148.8,148.76,49.82683501]
[1745889085489,17.77693396,148.81,148.76,49.82683501]
[1745889085810,6.4466,148.83,148.75,19.85032715]
[1745889085811,17.77693396,148.8,148.75,19.85032715]
[1745889085988,17.77693396,148.8,148.76,17.77693396]
[1745889086305,17.77693396,148.8,148.76,23.82673682]
[1745889088184,17.77693396,148.81,148.77,17.77693396]
[1745889089515,17.77693396,148.8,148.76,23.82673682]
[1745889089812,17.77693396,148.8,148.76,17.77693396]
[1745889090007,17.77693396,148.77,148.73,19.85115146]
[1745889090211,17.77693396,148.81,148.76,17.77693396]
[1745889090411,1.6275,148.82,148.77,17.77693396]